[Event "ESTCC-65 2025"]
[Site "Swidnica"]
[Date "2025.04.12"]
[Round "8.6"]
[White "Mestel, A Jonathan"]
[Black "Raupp, Thomas"]
[Result "1/2-1/2"]
[Annotator "ChessBase"]
[ECO "C43"]
[WhiteElo "2449"]
[BlackElo "2247"]
[PlyCount "29"]
[EventDate "2025.04.05"]
[EventType "team-tourn"]
[EventCountry "POL"]
[SourceTitle "playchess.com"]
[Source "ChessBase"]
[SourceQuality "1"]
[WhiteTeam "England"]
[BlackTeam "Germany"]
[WhiteTeamCountry "ENG"]
[BlackTeamCountry "GER"]
[TimeControl "40/5400+30:1800+30"]

1. e4 {[%emt 0:00:10]} e5 {[%emt 0:00:14]} 2. Nf3 {[%emt 0:00:26]} Nf6 {[%emt 0:00:18]} 3. d4 {[%emt 0:01:11]} Nxe4 {[%emt 0:00:18]} 4. Bd3 {[%emt 0:00:23]} d5 {[%emt 0:00:17]} 5. Nxe5 {[%emt 0:00:42]} Nd7 {[%emt 0:00:16]} 6. Nxd7 {[%emt 0:02:12]} Bxd7 {[%emt 0:00:15]} 7. O-O {[%emt 0:01:08]} Bd6 {[%emt 0:02:33]} 8. Nc3 {[%emt 0:01:36]} Nxc3 {[%emt 0:01:31]} 9. bxc3 {[%emt 0:00:09]} h5 {[%emt 0:07:42]} 10. Re1+ {[%emt 0:06:11]} Kf8 {[%emt 0:00:10]} 11. Qf3 {[%emt 0:13:36]} Bg4 {[%emt 0:01:22]} 12. Qe3 {[%emt 0:00:09]} Rh6 {[%emt 0:01:23]} 13. Qg5 {[%emt 0:09:03]} Re6 {[%emt 0:08:26]} 14. Rxe6 {[%emt 0:03:23]} Qxg5 {[%emt 0:01:48]} 15. Bxg5 {[%emt 0:00:09]} 1/2-1/2

[Event "ESTCC-65 2025"]
[Site "Swidnica"]
[Date "2025.04.12"]
[Round "8.7"]
[White "Vatter, Hans-Joachim"]
[Black "Large, Peter G"]
[Result "0-1"]
[Annotator "ChessBase"]
[ECO "B66"]
[WhiteElo "2192"]
[BlackElo "2342"]
[PlyCount "132"]
[EventDate "2025.04.05"]
[EventType "team-tourn"]
[EventCountry "POL"]
[SourceTitle "playchess.com"]
[Source "ChessBase"]
[SourceQuality "1"]
[WhiteTeam "Germany"]
[BlackTeam "England"]
[WhiteTeamCountry "GER"]
[BlackTeamCountry "ENG"]
[TimeControl "40/5400+30:1800+30"]

1. e4 {[%emt 0:00:04]} c5 {[%emt 0:02:10]} 2. Nf3 {[%emt 0:00:20]} d6 {[%emt 0:00:10]} 3. d4 {[%emt 0:00:18]} cxd4 {[%emt 0:00:06]} 4. Nxd4 {[%emt 0:00:15]} Nf6 {[%emt 0:00:08]} 5. Nc3 {[%emt 0:00:08]} Nc6 {[%emt 0:02:02]} 6. Bg5 {[%emt 0:02:05]} e6 {[%emt 0:00:20]} 7. Qd2 {[%emt 0:00:10]} a6 {[%emt 0:00:08]} 8. O-O-O {[%emt 0:02:08]} h6 {[%emt 0:02:12]} 9. Bf4 {[%emt 0:15:05]} Bd7 {[%emt 0:00:38]} 10. Nxc6 {[%emt 0:17:24]} Bxc6 {[%emt 0:02:13]} 11. Bxd6 {[%emt 0:03:17]} Bxd6 {[%emt 0:00:41]} 12. Qxd6 {[%emt 0:00:02]} Qxd6 {[%emt 0:00:12]} 13. Rxd6 {[%emt 0:00:10]} Bxe4 {[%emt 0:01:23]} 14. f3 {[%emt 0:02:45]} Bd5 {[%emt 0:03:36]} 15. Rb6 {[%emt 0:02:50]} Bc6 {[%emt 0:03:04]} 16. Bd3 {[%emt 0:09:33]} Ke7 {[%emt 0:03:08]} 17. Be4 {[%emt 0:02:13]} Nxe4 {[%emt 0:01:31]} 18. Nxe4 {[%emt 0:00:09]} Rhc8 {[%emt 0:20:07]} 19. Rd1 {[%emt 0:03:48]} Rd8 {[%emt 0:03:38]} 20. Rb4 {[%emt 0:08:06]} Rxd1+ {[%emt 0:01:15]} 21. Kxd1 {[%emt 0:00:01]} Rd8+ {[%emt 0:00:23]} 22. Ke1 {[%emt 0:02:44]} a5 {[%emt 0:04:15]} 23. Rb3 {[%emt 0:02:42]} Rd4 {[%emt 0:07:04]} 24. Nd2 {[%emt 0:06:47]} g5 {[%emt 0:03:14]} 25. Rd3 {[%emt 0:03:17]} Rh4 {[%emt 0:08:45]} 26. h3 {[%emt 0:00:14]} b5 {[%emt 0:08:03]} 27. a3 {[%emt 0:02:07]} Bd5 {[%emt 0:01:31]} 28. Kf2 {[%emt 0:01:27]} h5 {[%emt 0:01:37]} 29. Nf1 {[%emt 0:04:14]} Rf4 {[%emt 0:05:32]} 30. Ne3 {[%emt 0:01:59]} Bc6 {[%emt 0:00:53]} 31. c3 {[%emt 0:00:09]} Ra4 {[%emt 0:07:48]} 32. Nc2 {[%emt 0:03:17]} Bd5 {[%emt 0:01:52]} 33. Rd4 {[%emt 0:00:43]} Rc4 {[%emt 0:01:41]} 34. Ne3 {[%emt 0:03:21]} Rxd4 {[%emt 0:00:17]} 35. cxd4 {[%emt 0:00:02]} Bb3 {[%emt 0:00:33]} 36. g3 {[%emt 0:00:18]} h4 {[%emt 0:02:37]} 37. gxh4 {[%emt 0:00:21]} gxh4 {[%emt 0:00:07]} 38. Ng2 {[%emt 0:00:06]} Kd6 {[%emt 0:00:09]} 39. Nxh4 {[%emt 0:00:48]} Kd5 {[%emt 0:00:07]} 40. Ke3 {[%emt 0:00:00]} Kc4 {[%emt 0:00:00]} 41. f4 {[%emt 0:15:05]} Bc2 {[%emt 0:03:11]} 42. Nf3 {[%emt 0:01:59]} Kb3 {[%emt 0:06:02]} 43. d5 {[%emt 0:00:15]} exd5 {[%emt 0:00:24]} 44. Nd4+ {[%emt 0:00:01]} Kxb2 {[%emt 0:00:09]} 45. Nxb5 {[%emt 0:00:08]} Ba4 {[%emt 0:05:06]} 46. Nc7 {[%emt 0:03:19]} Kxa3 {[%emt 0:05:38]} 47. Nxd5 {[%emt 0:00:09]} Bd1 {[%emt 0:02:36]} 48. Nc3 {[%emt 0:06:43]} Bh5 {[%emt 0:00:51]} 49. Kd4 {[%emt 0:05:12]} Kb3 {[%emt 0:01:55]} 50. f5 {[%emt 0:00:22]} Bf3 {[%emt 0:06:14]} 51. Nb1 {[%emt 0:04:23]} Bd1 {[%emt 0:04:20]} 52. Nd2+ {[%emt 0:01:52]} Kb4 {[%emt 0:00:06]} 53. Nc4 {[%emt 0:00:34]} a4 {[%emt 0:01:14]} 54. h4 {[%emt 0:00:37]} Bg4 {[%emt 0:01:13]} 55. Ne3 {[%emt 0:00:13]} Bf3 {[%emt 0:00:57]} 56. Nc4 {[%emt 0:01:00]} Bd1 {[%emt 0:01:44]} 57. Ne3 {[%emt 0:00:18]} a3 {[%emt 0:01:12]} 58. Nd5+ {[%emt 0:00:09]} Kb3 {[%emt 0:00:12]} 59. Nc3 {[%emt 0:00:04]} Bg4 {[%emt 0:00:32]} 60. f6 {[%emt 0:00:54]} Bh5 {[%emt 0:00:16]} 61. Kd3 {[%emt 0:00:31]} a2 {[%emt 0:00:52]} 62. Nxa2 {[%emt 0:00:07]} Kxa2 {[%emt 0:00:05]} 63. Ke3 {[%emt 0:00:30]} Kb3 {[%emt 0:00:05]} 64. Kf4 {[%emt 0:00:04]} Kc4 {[%emt 0:00:17]} 65. Kg5 {[%emt 0:00:11]} Be2 {[%emt 0:01:11]} 66. Kh6 {[%emt 0:00:53]} Kd5 {[%emt 0:00:12]} 0-1

[Event "ESTCC-65 2025"]
[Site "Swidnica"]
[Date "2025.04.12"]
[Round "8.8"]
[White "Baker, Chris W"]
[Black "Vogel, Robert"]
[Result "1/2-1/2"]
[Annotator "ChessBase"]
[ECO "B31"]
[WhiteElo "2151"]
[BlackElo "2145"]
[PlyCount "38"]
[EventDate "2025.04.05"]
[EventType "team-tourn"]
[EventCountry "POL"]
[SourceTitle "playchess.com"]
[Source "ChessBase"]
[SourceQuality "1"]
[WhiteTeam "England"]
[BlackTeam "Germany"]
[WhiteTeamCountry "ENG"]
[BlackTeamCountry "GER"]
[TimeControl "40/5400+30:1800+30"]

1. e4 {[%emt 0:00:12]} c5 {[%emt 0:00:35]} 2. Nf3 {[%emt 0:00:19]} Nc6 {[%emt 0:00:13]} 3. Bb5 {[%emt 0:00:28]} g6 {[%emt 0:01:02]} 4. O-O {[%emt 0:01:03]} Bg7 {[%emt 0:00:26]} 5. Re1 {[%emt 0:01:51]} e5 {[%emt 0:03:51]} 6. Bxc6 {[%emt 0:05:31]} dxc6 {[%emt 0:09:05]} 7. d3 {[%emt 0:02:15]} Ne7 {[%emt 0:00:45]} 8. a4 {[%emt 0:05:42]} O-O {[%emt 0:04:48]} 9. Be3 {[%emt 0:04:44]} b6 {[%emt 0:00:46]} 10. a5 {[%emt 0:01:34]} Rb8 {[%emt 0:04:55]} 11. axb6 {[%emt 0:08:05]} axb6 {[%emt 0:00:17]} 12. Qc1 {[%emt 0:07:16]} f6 {[%emt 0:02:14]} 13. Bh6 {[%emt 0:05:26]} g5 {[%emt 0:10:02]} 14. Bxg7 {[%emt 0:00:15]} Kxg7 {[%emt 0:00:02]} 15. Ra7 {[%emt 0:02:57]} Rb7 {[%emt 0:02:26]} 16. Rxb7 {[%emt 0:03:48]} Bxb7 {[%emt 0:01:54]} 17. Nc3 {[%emt 0:03:57]} Ng6 {[%emt 0:08:49]} 18. Ne2 {[%emt 0:04:24]} Nf4 {[%emt 0:04:17]} 19. Nxf4 {[%emt 0:01:35]} gxf4 {[%emt 0:00:30]} 1/2-1/2

[Event "ESTCC-65 2025"]
[Site "Swidnica"]
[Date "2025.04.12"]
[Round "8.9"]
[White "Westerinen, Heikki M.J."]
[Black "Beilfuss, Wilfried"]
[Result "1/2-1/2"]
[Annotator "ChessBase"]
[ECO "B30"]
[WhiteElo "2209"]
[BlackElo "2070"]
[PlyCount "54"]
[EventDate "2025.04.05"]
[EventType "team-tourn"]
[EventCountry "POL"]
[SourceTitle "playchess.com"]
[Source "ChessBase"]
[SourceQuality "1"]
[WhiteTeam "Finland"]
[BlackTeam "Germany"]
[WhiteTeamCountry "FIN"]
[BlackTeamCountry "GER"]
[TimeControl "40/5400+30:1800+30"]

1. e4 {[%emt 0:00:04]} c5 {[%emt 0:00:09]} 2. Nf3 {[%emt 0:00:38]} Nc6 {[%emt 0:00:12]} 3. Bb5 {[%emt 0:00:21]} Nf6 {[%emt 0:00:44]} 4. e5 {[%emt 0:00:23]} Nd5 {[%emt 0:00:19]} 5. O-O {[%emt 0:01:43]} g6 {[%emt 0:01:59]} 6. Nc3 {[%emt 0:07:23]} Nc7 {[%emt 0:00:40]} 7. Re1 {[%emt 0:01:32]} Bg7 {[%emt 0:01:07]} 8. Bc4 {[%emt 0:00:49]} O-O {[%emt 0:01:13]} 9. d3 {[%emt 0:00:44]} Ne6 {[%emt 0:09:46]} 10. Nd5 {[%emt 0:09:47]} d6 {[%emt 0:05:46]} 11. exd6 {[%emt 0:03:38]} Qxd6 {[%emt 0:00:31]} 12. a4 {[%emt 0:04:49]} b6 {[%emt 0:01:04]} 13. Ng5 {[%emt 0:09:53]} Nxg5 {[%emt 0:21:11]} 14. Bxg5 {[%emt 0:00:10]} e5 {[%emt 0:03:31]} 15. c3 {[%emt 0:07:34]} Be6 {[%emt 0:04:37]} 16. Qf3 {[%emt 0:04:24]} f5 {[%emt 0:02:43]} 17. Rad1 {[%emt 0:10:53]} Rae8 {[%emt 0:00:20]} 18. Bc1 {[%emt 0:02:38]} h6 {[%emt 0:01:42]} 19. Ne3 {[%emt 0:00:57]} Rd8 {[%emt 0:01:35]} 20. Bb5 {[%emt 0:02:40]} Bd7 {[%emt 0:04:44]} 21. Qd5+ {[%emt 0:01:49]} Qxd5 {[%emt 0:00:31]} 22. Nxd5 {[%emt 0:00:02]} Kh7 {[%emt 0:01:13]} 23. f4 {[%emt 0:01:41]} Rfe8 {[%emt 0:01:57]} 24. fxe5 {[%emt 0:04:46]} Nxe5 {[%emt 0:02:47]} 25. Bxd7 {[%emt 0:01:59]} Nxd7 {[%emt 0:02:30]} 26. Bf4 {[%emt 0:02:28]} Nf6 {[%emt 0:01:48]} 27. Nxf6+ {[%emt 0:00:36]} Bxf6 {[%emt 0:00:13]} 1/2-1/2

[Event "ESTCC-65 2025"]
[Site "Swidnica"]
[Date "2025.04.12"]
[Round "8.10"]
[White "Woestmann, Hans-Joachim"]
[Black "Joentausta, Hannu"]
[Result "1-0"]
[Annotator "NA"]
[ECO "D58"]
[WhiteElo "2029"]
[BlackElo "2081"]
[PlyCount "93"]
[EventDate "2025.04.05"]
[EventType "team-tourn"]
[EventCountry "POL"]
[SourceTitle "playchess.com"]
[Source "ChessBase"]
[SourceQuality "1"]
[WhiteTeam "Germany"]
[BlackTeam "Finland"]
[WhiteTeamCountry "GER"]
[BlackTeamCountry "FIN"]
[TimeControl "40/5400+30:1800+30"]

1. Nf3 {[%emt 0:00:11]} Nf6 {[%emt 0:00:15]} 2. c4 {[%emt 0:00:13]} e6 {[%emt 0:00:28]} 3. Nc3 {[%emt 0:00:13]} d5 {[%emt 0:01:01]} 4. d4 {[%emt 0:00:30]} Be7 {[%emt 0:00:19]} 5. Bg5 {[%emt 0:00:24]} O-O {[%emt 0:00:34]} 6. e3 {[%emt 0:00:15]} h6 {[%emt 0:01:09]} 7. Bh4 {[%emt 0:00:23]} b6 {[%emt 0:00:17]} 8. Be2 {[%emt 0:03:44]} Bb7 {[%emt 0:00:38]} 9. Bxf6 {[%emt 0:00:40]} Bxf6 {[%emt 0:00:02]} 10. cxd5 {[%emt 0:00:16]} exd5 {[%emt 0:00:14]} 11. Qb3 {[%emt 0:00:55]} Re8 {[%emt 0:08:51]} 12. O-O {[%emt 0:00:36]} c6 {[%emt 0:00:43]} 13. Rad1 {[%emt 0:02:01]} Qc8 {[%emt 0:26:30]} 14. Rfe1 {[%emt 0:02:28]} Nd7 {[%emt 0:05:53]} 15. e4 {[%emt 0:03:37]} dxe4 {[%emt 0:01:35]} 16. Bc4 {[%emt 0:00:13]} Rf8 {[%emt 0:02:14]} 17. Nxe4 {[%emt 0:02:36]} Be7 {[%emt 0:04:22]} 18. Ng3 {[%emt 0:07:01]} Bf6 {[%emt 0:06:23]} 19. Nf5 {[%emt 0:12:57]} b5 {[%emt 0:06:41]} 20. Bxf7+ {[%emt 0:04:12]} Kh8 {[%emt 0:03:12]} 21. Bg6 {[%emt 0:07:45]} Qc7 {[%emt 0:01:18]} 22. Re6 {[%emt 0:19:08]} Nb6 {[%emt 0:02:05]} 23. Ne5 {[%emt 0:06:35]} Nd5 {[%emt 0:04:36]} 24. Qg3 {[%emt 0:07:28]} Rad8 {[%emt 0:04:02]} 25. Nxc6 {[%emt 0:02:28]} Rc8 {[%emt 0:05:02]} 26. Nxa7 {[%emt 0:03:31]} Ra8 {[%emt 0:03:53]} 27. Nxb5 {[%emt 0:00:58]} Qd7 {[%emt 0:00:06]} 28. Rxf6 {[%emt 0:02:42]} Nxf6 {[%emt 0:03:14]} 29. Nc3 {[%emt 0:00:38]} Nd5 {[%emt 0:04:27]} 30. Nh4 {[%emt 0:02:08]} Nf4 {[%emt 0:02:13]} 31. Bb1 {[%emt 0:01:38]} Rf6 {[%emt 0:02:07]} 32. Ng6+ {[%emt 0:03:19]} Nxg6 {[%emt 0:00:31]} 33. Bxg6 {[%emt 0:00:02]} Raf8 {[%emt 0:00:25]} 34. f3 {[%emt 0:01:30]} Qe7 {[%emt 0:01:07]} 35. Be4 {[%emt 0:01:20]} Qb4 {[%emt 0:00:50]} 36. Bxb7 {[%emt 0:01:04]} Qxb7 {[%emt 0:00:01]} 37. b3 {[%emt 0:00:36]} Rd8 {[%emt 0:00:31]} 38. Qf2 {[%emt 0:01:22]} Qb6 {[%emt 0:00:43]} 39. d5 {[%emt 0:00:18]} Qa5 {[%emt 0:00:32]} 40. Qd4 {[%emt 0:00:00]} Rc8 {[%emt 0:00:00]} 41. Ne4 {[%emt 0:13:10]} Rf7 {[%emt 0:05:08]} 42. Nd6 {[%emt 0:01:17]} Qc7 {[%emt 0:00:02]} 43. Nxf7+ {[%emt 0:00:19]} Qxf7 {[%emt 0:00:01]} 44. d6 {[%emt 0:00:24]} Qd7 {[%emt 0:00:02]} 45. Re1 {[%emt 0:03:01]} Rc6 {[%emt 0:00:01]} 46. Re7 {[%emt 0:01:06]} Qxd6 {[%emt 0:00:05]} 47. Qxg7# {[%emt 0:00:09]} 1-0

[Event "ESTCC-65 2025"]
[Site "Swidnica"]
[Date "2025.04.12"]
[Round "8.12"]
[White "Becker, Norbert"]
[Black "Patola, Eero"]
[Result "1-0"]
[Annotator "NA"]
[ECO "A10"]
[WhiteElo "2032"]
[BlackElo "1872"]
[PlyCount "51"]
[EventDate "2025.04.05"]
[EventType "team-tourn"]
[EventCountry "POL"]
[SourceTitle "playchess.com"]
[Source "ChessBase"]
[SourceQuality "1"]
[WhiteTeam "Germany"]
[BlackTeam "Finland"]
[WhiteTeamCountry "GER"]
[BlackTeamCountry "FIN"]
[TimeControl "40/5400+30:1800+30"]

1. c4 {[%emt 0:00:06]} f5 {[%emt 0:01:52]} 2. Nf3 {[%emt 0:01:07]} Nf6 {[%emt 0:00:20]} 3. g3 {[%emt 0:01:46]} g6 {[%emt 0:00:24]} 4. Bg2 {[%emt 0:01:19]} Bg7 {[%emt 0:00:11]} 5. Nc3 {[%emt 0:01:09]} d6 {[%emt 0:01:01]} 6. d3 {[%emt 0:03:21]} c6 {[%emt 0:01:47]} 7. Rb1 {[%emt 0:00:52]} O-O 8. b4 {[%emt 0:01:02]} h6 {[%emt 0:04:06]} 9. O-O {[%emt 0:06:39]} Qe8 {[%emt 0:04:03]} 10. b5 {[%emt 0:17:22]} c5 {[%emt 0:11:46]} 11. Nd2 {[%emt 0:04:47]} Nbd7 {[%emt 0:07:02]} 12. f4 {[%emt 0:02:38]} Rb8 {[%emt 0:02:39]} 13. Nb3 {[%emt 0:03:22]} b6 {[%emt 0:02:35]} 14. Bc6 {[%emt 0:05:31]} Qd8 {[%emt 0:05:47]} 15. Qe1 {[%emt 0:04:02]} Bb7 {[%emt 0:06:50]} 16. e4 {[%emt 0:01:54]} fxe4 {[%emt 0:01:27]} 17. Nxe4 {[%emt 0:02:56]} a5 {[%emt 0:04:44]} 18. Nc3 {[%emt 0:03:17]} Re8 {[%emt 0:02:46]} 19. Qe6+ {[%emt 0:03:58]} Kh7 {[%emt 0:00:23]} 20. Bb2 {[%emt 0:01:26]} Nf8 {[%emt 0:03:25]} 21. Qf7 {[%emt 0:03:28]} Bxc6 {[%emt 0:00:54]} 22. bxc6 {[%emt 0:00:15]} Qc8 {[%emt 0:00:39]} 23. Rfe1 {[%emt 0:07:19]} e6 {[%emt 0:08:13]} 24. Ne4 {[%emt 0:02:03]} Qxc6 {[%emt 0:06:11]} 25. Nxf6+ {[%emt 0:00:15]} Kh8 {[%emt 0:00:28]} 26. Qg8# 1-0

[Event "ESTCC-65 2025"]
[Site "Swidnica"]
[Date "2025.04.12"]
[Round "8.13"]
[White "Rooze, Jan"]
[Black "Janocha, Wieslaw"]
[Result "1-0"]
[Annotator "ChessBase"]
[ECO "B52"]
[WhiteElo "2198"]
[BlackElo "2186"]
[PlyCount "65"]
[EventDate "2025.04.05"]
[EventType "team-tourn"]
[EventCountry "POL"]
[SourceTitle "playchess.com"]
[Source "ChessBase"]
[SourceQuality "1"]
[WhiteTeam "Belgium"]
[BlackTeam "Poland"]
[WhiteTeamCountry "BEL"]
[BlackTeamCountry "POL"]
[TimeControl "40/5400+30:1800+30"]

1. e4 {[%emt 0:00:04]} c5 {[%emt 0:00:07]} 2. Nf3 {[%emt 0:00:07]} d6 {[%emt 0:00:05]} 3. Bb5+ {[%emt 0:00:06]} Bd7 {[%emt 0:00:06]} 4. c4 {[%emt 0:00:06]} g6 {[%emt 0:03:53]} 5. d4 {[%emt 0:10:49]} cxd4 {[%emt 0:00:23]} 6. Qxd4 {[%emt 0:00:19]} Nf6 {[%emt 0:02:41]} 7. e5 {[%emt 0:18:55]} dxe5 {[%emt 0:02:55]} 8. Nxe5 {[%emt 0:00:23]} Bxb5 {[%emt 0:01:53]} 9. Qxd8+ {[%emt 0:01:44]} Kxd8 {[%emt 0:00:09]} 10. cxb5 {[%emt 0:00:12]} Ke8 {[%emt 0:00:08]} 11. Nc3 {[%emt 0:00:42]} e6 {[%emt 0:05:59]} 12. O-O {[%emt 0:01:54]} Nbd7 {[%emt 0:03:58]} 13. Nxd7 {[%emt 0:07:02]} Nxd7 {[%emt 0:01:26]} 14. Rd1 {[%emt 0:02:26]} Nc5 {[%emt 0:16:21]} 15. Be3 {[%emt 0:06:20]} Be7 {[%emt 0:02:11]} 16. Rac1 {[%emt 0:02:12]} Rd8 {[%emt 0:01:51]} 17. Rxd8+ {[%emt 0:04:42]} Kxd8 {[%emt 0:00:08]} 18. b4 {[%emt 0:02:19]} Nd7 {[%emt 0:00:33]} 19. a3 {[%emt 0:03:58]} b6 {[%emt 0:01:32]} 20. Ne2 {[%emt 0:01:22]} Bf6 {[%emt 0:02:31]} 21. a4 {[%emt 0:00:46]} Be7 {[%emt 0:03:21]} 22. Nd4 {[%emt 0:00:39]} Nb8 {[%emt 0:03:21]} 23. Bf4 {[%emt 0:03:00]} Bf6 {[%emt 0:00:15]} 24. Nxe6+ {[%emt 0:01:39]} fxe6 {[%emt 0:09:38]} 25. Bxb8 {[%emt 0:00:16]} Kd7 {[%emt 0:05:38]} 26. Rc7+ {[%emt 0:02:13]} Kd6 {[%emt 0:00:23]} 27. Rb7+ {[%emt 0:02:50]} Kd5 {[%emt 0:01:44]} 28. Bxa7 {[%emt 0:00:17]} Ra8 {[%emt 0:02:23]} 29. a5 {[%emt 0:01:49]} Kc4 {[%emt 0:00:41]} 30. Bxb6 {[%emt 0:02:22]} Kxb4 {[%emt 0:00:29]} 31. g3 {[%emt 0:04:13]} h5 {[%emt 0:04:36]} 32. Bc7 {[%emt 0:01:37]} Bd4 {[%emt 0:00:44]} 33. a6 {[%emt 0:01:00]} 1-0

[Event "ESTCC-65 2025"]
[Site "Swidnica"]
[Date "2025.04.12"]
[Round "8.14"]
[White "Zyla, Janusz"]
[Black "Goormachtigh, Johan"]
[Result "0-1"]
[Annotator "ChessBase"]
[ECO "B48"]
[WhiteElo "2181"]
[BlackElo "2207"]
[PlyCount "70"]
[EventDate "2025.04.05"]
[EventType "team-tourn"]
[EventCountry "POL"]
[SourceTitle "playchess.com"]
[Source "ChessBase"]
[SourceQuality "1"]
[WhiteTeam "Poland"]
[BlackTeam "Belgium"]
[WhiteTeamCountry "POL"]
[BlackTeamCountry "BEL"]
[TimeControl "40/5400+30:1800+30"]

1. e4 {[%emt 0:00:09]} c5 {[%emt 0:00:21]} 2. Nf3 {[%emt 0:00:11]} e6 {[%emt 0:00:07]} 3. d4 {[%emt 0:00:12]} cxd4 {[%emt 0:00:06]} 4. Nxd4 {[%emt 0:00:09]} Nc6 {[%emt 0:00:25]} 5. Nc3 {[%emt 0:00:18]} Qc7 {[%emt 0:00:54]} 6. Be3 {[%emt 0:00:10]} a6 {[%emt 0:04:25]} 7. Qf3 {[%emt 0:00:24]} Nf6 {[%emt 0:00:13]} 8. O-O-O {[%emt 0:00:11]} Ne5 {[%emt 0:01:28]} 9. Qg3 {[%emt 0:01:30]} b5 {[%emt 0:00:08]} 10. f4 {[%emt 0:06:00]} Neg4 {[%emt 0:00:12]} 11. Bg1 {[%emt 0:18:07]} b4 {[%emt 0:04:01]} 12. Na4 {[%emt 0:00:17]} h5 {[%emt 0:00:16]} 13. Bd3 {[%emt 0:00:33]} Bb7 {[%emt 0:15:30]} 14. h3 {[%emt 0:10:54]} Nh6 {[%emt 0:17:24]} 15. Qe3 {[%emt 0:09:31]} d5 {[%emt 0:05:10]} 16. e5 {[%emt 0:02:07]} Ne4 {[%emt 0:00:41]} 17. Bxe4 {[%emt 0:00:59]} dxe4 {[%emt 0:00:03]} 18. Qe2 {[%emt 0:01:52]} h4 {[%emt 0:18:53]} 19. Bf2 {[%emt 0:12:20]} Be7 {[%emt 0:01:58]} 20. Nb3 {[%emt 0:00:44]} Nf5 {[%emt 0:00:59]} 21. Nb6 {[%emt 0:13:58]} Rd8 {[%emt 0:00:46]} 22. Rxd8+ {[%emt 0:00:17]} Bxd8 {[%emt 0:01:44]} 23. Bc5 {[%emt 0:03:55]} Be7 {[%emt 0:03:45]} 24. Bf2 {[%emt 0:09:23]} e3 {[%emt 0:02:42]} 25. Bxe3 {[%emt 0:00:07]} Ng3 {[%emt 0:00:06]} 26. Qd1 {[%emt 0:01:22]} Nxh1 {[%emt 0:00:40]} 27. Qxh1 {[%emt 0:00:02]} Be4 {[%emt 0:00:51]} 28. Na1 {[%emt 0:03:31]} O-O {[%emt 0:01:54]} 29. Qf1 {[%emt 0:00:58]} a5 {[%emt 0:04:12]} 30. Qf2 {[%emt 0:01:12]} a4 {[%emt 0:03:43]} 31. g3 {[%emt 0:01:59]} a3 {[%emt 0:01:44]} 32. Bd4 {[%emt 0:01:09]} Rd8 {[%emt 0:02:32]} 33. g4 {[%emt 0:00:55]} Bh7 {[%emt 0:04:13]} 34. f5 {[%emt 0:00:59]} Bg5+ {[%emt 0:01:14]} 35. Kb1 {[%emt 0:00:14]} Qxb6 {[%emt 0:00:17]} 0-1

[Event "ESTCC-65 2025"]
[Site "Swidnica"]
[Date "2025.04.12"]
[Round "8.15"]
[White "Stuer, Marc"]
[Black "Czajkowski, Ryszard"]
[Result "1-0"]
[Annotator "NA"]
[ECO "D78"]
[WhiteElo "2038"]
[BlackElo "1963"]
[PlyCount "79"]
[EventDate "2025.04.05"]
[EventType "team-tourn"]
[EventCountry "POL"]
[SourceTitle "playchess.com"]
[Source "ChessBase"]
[SourceQuality "1"]
[WhiteTeam "Belgium"]
[BlackTeam "Poland"]
[WhiteTeamCountry "BEL"]
[BlackTeamCountry "POL"]
[TimeControl "40/5400+30:1800+30"]

1. d4 {[%emt 0:00:04]} Nf6 {[%emt 0:00:08]} 2. Nf3 {[%emt 0:00:06]} g6 {[%emt 0:00:22]} 3. g3 {[%emt 0:00:04]} Bg7 {[%emt 0:00:48]} 4. Bg2 {[%emt 0:00:05]} d5 {[%emt 0:00:13]} 5. O-O {[%emt 0:00:10]} O-O {[%emt 0:00:18]} 6. c4 {[%emt 0:00:04]} c6 {[%emt 0:01:05]} 7. b3 {[%emt 0:00:12]} Bf5 {[%emt 0:02:52]} 8. Bb2 {[%emt 0:01:32]} Nbd7 {[%emt 0:03:37]} 9. Nc3 {[%emt 0:13:40]} Ne4 {[%emt 0:00:40]} 10. cxd5 {[%emt 0:00:45]} Nxc3 {[%emt 0:00:13]} 11. Bxc3 {[%emt 0:00:09]} cxd5 {[%emt 0:00:05]} 12. Rc1 {[%emt 0:04:44]} Be4 {[%emt 0:08:46]} 13. Qd2 {[%emt 0:10:09]} Re8 {[%emt 0:04:24]} 14. Rfd1 {[%emt 0:04:11]} Rc8 {[%emt 0:08:20]} 15. a4 {[%emt 0:05:48]} Qb6 {[%emt 0:16:16]} 16. b4 {[%emt 0:03:04]} Qf6 {[%emt 0:23:48]} 17. Ne5 {[%emt 0:04:53]} Nxe5 {[%emt 0:01:41]} 18. dxe5 {[%emt 0:00:07]} Qa6 {[%emt 0:00:47]} 19. f3 {[%emt 0:03:39]} Bf5 {[%emt 0:00:11]} 20. Qxd5 {[%emt 0:00:47]} Qxa4 {[%emt 0:01:03]} 21. Be1 {[%emt 0:13:36]} Rxc1 {[%emt 0:04:29]} 22. Rxc1 {[%emt 0:00:09]} Qa3 {[%emt 0:01:51]} 23. Rc7 Qa1 {[%emt 0:04:02]} 24. Qd2 {[%emt 0:18:58]} Bxe5 {[%emt 0:02:53]} 25. Rc1 {[%emt 0:00:11]} Qa6 {[%emt 0:00:31]} 26. e4 {[%emt 0:01:28]} Be6 {[%emt 0:01:59]} 27. f4 {[%emt 0:00:49]} Bc7 {[%emt 0:01:29]} 28. Rxc7 {[%emt 0:02:50]} Qb6+ {[%emt 0:02:18]} 29. Rc5 {[%emt 0:00:02]} a5 {[%emt 0:00:05]} 30. Bf2 {[%emt 0:04:34]} Qxb4 {[%emt 0:01:39]} 31. Qxb4 {[%emt 0:03:54]} axb4 {[%emt 0:00:01]} 32. f5 {[%emt 0:01:22]} Ba2 {[%emt 0:00:14]} 33. Bf1 {[%emt 0:00:43]} b3 {[%emt 0:00:29]} 34. Bc4 {[%emt 0:01:05]} Ra8 {[%emt 0:05:34]} 35. Bd4 {[%emt 0:00:33]} Rd8 {[%emt 0:01:45]} 36. Bc3 {[%emt 0:01:16]} b6 {[%emt 0:00:31]} 37. Rb5 {[%emt 0:00:52]} Rc8 {[%emt 0:00:11]} 38. Rxb6 {[%emt 0:01:29]} e5 {[%emt 0:02:09]} 39. Bxe5 {[%emt 0:00:52]} Kf8 {[%emt 0:00:26]} 40. Rb8 {[%emt 0:00:00]} 1-0